fUST/lending_fUST_20241022
["ID","MTS","AMOUNT","RATE_DAILY","PERIOD"]
[340613572,1729531848461,-580.5865434,0.00016712,2]
[340613573,1729531848470,-1480.07,0.00016712,2]
[340613574,1729531848481,-618.57,0.00016712,2]
[340613575,1729531848490,-1584.71,0.00016712,2]
[340613576,1729531848500,-592.54233629,0.00016712,2]
[340613577,1729531848509,-1532.05,0.00016712,2]
[340613578,1729531848519,-873.99,0.00016712,2]
[340613579,1729531848529,-614.98,0.00016712,2]
[340613580,1729531848539,-948.02,0.00016712,2]
[340613581,1729531848549,-1379.72,0.00016712,2]
[340613582,1729531848558,-1341.47,0.00016712,2]
[340613583,1729531848569,-883.64,0.00016712,2]
[340613584,1729531848579,-632.73,0.00016712,2]
[340613585,1729531848588,-688.73,0.00016712,2]
[340613586,1729531848598,-500.0,0.00016712,2]
[340613587,1729531848608,-830.1,0.00016712,2]
[340613588,1729531848618,-379.59203471,0.00016712,2]
[340613589,1729531848627,-3016.06,0.00016712,2]
[340613590,1729531848637,-500.0,0.00016712,2]
[340613591,1729531848648,-500.0,0.00016712,2]
[340613592,1729531848657,-1633.84,0.00016712,2]
[340613593,1729531848667,-1270.48,0.00016712,2]
[340613594,1729531848676,-151.0,0.00016712,2]
[340613595,1729531848686,-151.0,0.00016712,2]
[340613596,1729531848695,-500.0,0.00016712,2]
[340613597,1729531848705,-1530.23,0.00016712,2]
[340613598,1729531848714,-500.0,0.00016712,2]
[340613599,1729531848723,-562.93911902,0.00016712,2]
[340613600,1729531848732,-2159.84,0.00016712,2]
[340613601,1729531848742,-582.77221869,0.00016712,2]
[340613602,1729531848752,-2015.98,0.00016712,2]
[340613603,1729531848761,-1334.13,0.00016712,2]
[340613604,1729531848770,-151.0,0.00016712,2]
[340613605,1729531848779,-151.0,0.00016712,2]
[340613606,1729531848789,-2581.09,0.00016712,2]
[340613607,1729531848799,-591.97,0.00016712,2]
[340613608,1729531848808,-151.0,0.00016712,2]
[340613609,1729531848818,-151.0,0.00016712,2]
[340613610,1729531848828,-500.0,0.00016712,2]
[340613611,1729531848837,-1000.44,0.00016712,2]
[340613612,1729531848846,-500.0,0.00016712,2]
[340613613,1729531848856,-1128.6,0.00016712,2]
[340613614,1729531848865,-713.04,0.00016712,2]
[340613615,1729531848875,-685.04,0.00016712,2]
[340613616,1729531848885,-1214.24,0.00016712,2]
[340613617,1729531848894,-1074.99,0.00016712,2]
[340613618,1729531848903,-478.97113606,0.00016712,2]
[340613619,1729531848912,-559.68,0.00016712,2]
[340613620,1729531848922,-548.8,0.00016712,2]
[340613621,1729531848931,-1455.91,0.00016712,2]
[340613622,1729531848941,-151.0,0.00016712,2]
[340613623,1729531848950,-151.0,0.00016712,2]
[340613624,1729531848959,-865.06,0.00016712,2]
[340613625,1729531848969,-500.0,0.00016712,2]
[340613626,1729531848978,-1270.18,0.00016712,2]
[340613627,1729531848988,-878.53,0.00016712,2]
[340613628,1729531848998,-2304.08,0.00016712,2]
[340613629,1729531849007,-500.0,0.00016712,2]
[340613630,1729531849017,-795.6,0.00016712,2]
[340613631,1729531849027,-151.0,0.00016712,2]
[340613632,1729531849036,-151.0,0.00016712,2]
[340613633,1729531849045,-517.77,0.00016712,2]
[340613634,1729531849054,-844.8,0.00016712,2]
[340613635,1729531849064,-500.0,0.00016712,2]
[340613636,1729531849074,-970.67,0.00016712,2]
[340613637,1729531849083,-151.0,0.00016712,2]
[340613638,1729531849092,-1260.04,0.00016712,2]
[340613639,1729531849102,-500.0,0.00016712,2]
[340613640,1729531849111,-1942.29,0.00016712,2]
[340613641,1729531849121,-500.0,0.00016712,2]
[340613642,1729531849130,-834.14,0.00016712,2]
[340613643,1729531849140,-928.87,0.00016712,2]
[340613644,1729531849149,-984.04,0.00016712,2]
[340613645,1729531849159,-563.51,0.00016712,2]
[340613646,1729531849169,-151.0,0.00016712,2]
[340613647,1729531849178,-151.0,0.00016712,2]
[340613648,1729531849188,-500.0,0.00016712,2]
[340613649,1729531849198,-214.573957,0.00016712,2]
[340613650,1729531849207,-830.87,0.00016712,2]
[340613651,1729531849216,-500.0,0.00016712,2]
[340613652,1729531849226,-657.72,0.00016712,2]
[340613653,1729531849236,-1623.94,0.00016712,2]
[340613654,1729531849246,-500.6,0.00016712,2]
[340613655,1729531849255,-1213.6,0.00016712,2]
[340613656,1729531849265,-415.81130527,0.00016712,2]
[340613657,1729531849275,-662.82,0.00016712,2]
[340613658,1729531849284,-1135.09,0.00016712,2]
[340613659,1729531849293,-500.0,0.00016712,2]
[340613660,1729531849303,-839.94,0.00016712,2]
[340613661,1729531849313,-500.0,0.00016712,2]
[340613662,1729531849323,-946.68,0.00016712,2]
[340613663,1729531849332,-1312.26,0.00016712,2]
[340613664,1729531849342,-500.0,0.00016712,2]
[340613665,1729531849351,-2213.85,0.00016712,2]
[340613666,1729531849361,-513.59,0.00016712,2]
[340613667,1729531849370,-500.0,0.00016712,2]
[340613668,1729531849380,-716.18,0.00016712,2]
[340613669,1729531849389,-151.0,0.00016712,2]
[340613670,1729531849398,-151.0,0.00016712,2]
[340613671,1729531849408,-1013.08,0.00016712,2]
[340613672,1729531849418,-3205.68,0.00016712,2]
[340613673,1729531849428,-818.89,0.00016712,2]
[340613674,1729531849437,-1171.88,0.00016712,2]
[340613675,1729531849447,-1210.38,0.00016712,2]
[340613676,1729531849457,-653.68,0.00016712,2]
[340613677,1729531849467,-500.0,0.00016712,2]
[340613678,1729531849477,-220.7861511,0.00016712,2]
[340613679,1729531849486,-1012.64,0.00016712,2]
[340613680,1729531849496,-600.85,0.00016712,2]
[340613681,1729531849505,-500.0,0.00016712,2]
[340613682,1729531849515,-500.0,0.00016712,2]
[340613683,1729531849525,-500.0,0.00016712,2]
[340613684,1729531849534,-1224.64,0.00016712,2]
[340613685,1729531849761,-500.0,0.00016712,2]
[340613686,1729531849772,-514.69,0.00016712,2]
[340613687,1729531849783,-2117.66,0.00016712,2]
[340613688,1729531849792,-1611.8,0.00016712,2]
[340613689,1729531849802,-1979.01,0.00016712,2]
[340613690,1729531849812,-1673.87,0.00016712,2]
[340613691,1729531849821,-614.44,0.00016712,2]
[340613692,1729531849831,-1121.44,0.00016712,2]
[340613693,1729531849841,-812.39,0.00016712,2]
[340613694,1729531849850,-500.0,0.00016712,2]
[340613695,1729531849860,-645.46,0.00016712,2]
[340613696,1729531849869,-500.0,0.00016712,2]
[340613697,1729531849879,-151.0,0.00016712,2]
[340613698,1729531849888,-500.0,0.00016712,2]
[340613699,1729531849897,-231.62734,0.00016712,2]
[340613700,1729531849907,-840.47,0.00016712,2]
[340613701,1729531849917,-500.0,0.00016712,2]
[340613702,1729531849926,-151.0,0.00016712,2]
[340613703,1729531849936,-151.0,0.00016712,2]
[340613704,1729531849946,-151.0,0.00016712,2]
[340613705,1729531849956,-1153.31,0.00016712,2]
[340613706,1729531849966,-595.31,0.00016712,2]
[340613707,1729531849976,-500.0,0.00016712,2]
[340613708,1729531849985,-500.0,0.00016712,2]
[340613709,1729531849994,-500.0,0.00016712,2]
[340613710,1729531850004,-1199.16,0.00016712,2]
[340613711,1729531850014,-1637.62,0.00016712,2]
[340613712,1729531850024,-1976.95,0.00016712,2]
[340613713,1729531850034,-708.28,0.00016712,2]
[340613714,1729531850044,-500.0,0.00016712,2]
[340613715,1729531850053,-500.0,0.00016712,2]
[340613716,1729531850062,-500.0,0.00016712,2]
[340613717,1729531850071,-865.49,0.00016712,2]
[340613718,1729531850081,-501.88,0.00016712,2]
[340613719,1729531850091,-1211.67,0.00016712,2]
[340613720,1729531850100,-236.583372,0.00016712,2]
[340613721,1729531850109,-1803.41,0.00016712,2]
[340613722,1729531850119,-1293.62,0.00016712,2]
[340613723,1729531850129,-500.0,0.00016712,2]
[340613724,1729531850138,-151.0,0.00016712,2]
[340613725,1729531850147,-159.757695,0.00016712,2]
[340613726,1729531850157,-500.0,0.00016712,2]
[340613727,1729531850167,-2536.07,0.00016712,2]
[340613728,1729531850176,-136.46030607,0.00016712,2]
[340613730,1729532584356,207.1,0.00010959,2]
[340613731,1729532735145,-250.0,0.00015076,2]
[340613732,1729532735167,-300.0,0.0001532,2]
[340613733,1729532735189,-300.0,0.0001532,2]
[340613734,1729532735211,-593.13313583,0.00015321,2]
[340613735,1729532742118,-241.49862803,0.00015321,2]
[340613736,1729532837085,-300.0,0.0001532,2]
[340613737,1729532837107,-300.0,0.0001532,2]
[340613738,1729532837130,-96.78256052,0.00015321,2]
[340613739,1729532837158,-8185.06777387,0.00015321,2]
[340613740,1729532838304,-1115.06177299,0.00015321,2]
[340613741,1729532842287,-3547.89345491,0.00015321,2]
[340613742,1729532851099,-2078.04212714,0.00015321,2]
[340613745,1729533019103,246.71151414,0.00010959,2]
[340613746,1729533019129,218.81940254,0.00010959,2]
[340613747,1729533019153,70.10908332,0.00010959,2]
[340613748,1729533029949,174.89091668,0.00010959,2]
[340613749,1729533029972,168.51251093,0.00010959,2]
[340613750,1729533029994,102.95657239,0.00010959,2]
[340614388,1729533038142,-9022.5205467,0.00015247,2]
[340614390,1729533038153,-168.766887,0.00015373,2]
[340614392,1729533038164,-168.766887,0.00015453,2]
[340614394,1729533038174,-168.766887,0.00015533,2]
[340614395,1729533038184,-168.766887,0.00015613,2]
[340614396,1729533038195,-300.0,0.00015692,2]
[340614398,1729533038204,-168.766887,0.00015693,2]
[340614399,1729533038213,-168.766887,0.00015773,2]
[340614400,1729533038223,-168.766887,0.00015853,2]
[340614401,1729533038233,-160.217503,0.0001589,2]
[340614402,1729533038243,-168.766887,0.00015933,2]
[340614403,1729533038253,-168.766887,0.00016014,2]
[340614404,1729533038262,-168.766887,0.00016094,2]
[340614405,1729533038272,-168.766887,0.00016174,2]
[340614406,1729533038282,-623.37588408,0.00016338,2]
[340614407,1729533038291,-156.88015092,0.00016338,2]
[340614408,1729533038301,-327.10967043,0.00016418,2]
[340614410,1729533038310,-119642.52909706,0.00016418,2]
[340614412,1729533038322,-6068.54320545,0.00016418,2]
[340614414,1729533038334,-18469.62420796,0.00016418,2]
[340614417,1729533038346,-658.50612679,0.00016418,2]
[340614434,1729533038508,-2623.28109587,0.00016418,2]
[340614578,1729533040023,-978.168932,0.00016418,2]
[340614579,1729533040036,-44496.80665198,0.00016418,2]
[340614580,1729533040051,-6981.83974016,0.00016418,2]
[340614581,1729533040140,-1512.81684643,0.00016418,2]
[340614582,1729533040565,53.84342761,0.00010959,2]
[340614583,1729533040588,151.86352271,0.00010959,2]
[340614584,1729533040608,166.26304968,0.00010959,2]
[340614593,1729533043253,-3720.98436153,0.00016418,2]
[340614594,1729533043265,-612.8933849,0.00016418,2]
[340614595,1729533043285,-3380.2,0.00016418,2]
[340614596,1729533043296,-1963.37596996,0.00016418,2]
[340614720,1729533046156,-6072.0055767,0.00016418,2]
[340614729,1729533046255,-9237.71603365,0.00016418,2]
[340614733,1729533046294,-943.44465914,0.00016418,2]
[340614782,1729533051503,36.69834798,0.00010959,2]
[340614783,1729533051531,273.28165202,0.00010959,2]
[340614784,1729533062375,258.31,0.00010959,2]
[340614785,1729533073038,215.26,0.00010959,2]
[340614786,1729533083618,179.38,0.00010959,2]
[340614787,1729533094235,896.95,0.00010959,2]
[340614790,1729533948107,-300.0,0.00015057,2]
[340614791,1729533948130,-125.93634229,0.00015057,2]
[340614792,1729533952089,-174.06365771,0.00015057,2]
[340614793,1729533952111,-51.88391558,0.00015058,2]
[340614794,1729534034566,200.55,0.00010959,2]
[340614795,1729534035120,-300.0,0.00015057,2]
[340614796,1729534035141,-300.0,0.00015057,2]
[340614797,1729534035163,-1109.25440784,0.00015058,2]
[340614798,1729534040127,-153.36460712,0.00015058,2]
[340614799,1729534054101,-2843.84737463,0.00015058,2]
[340614800,1729534168818,246.7115063,0.0001488,2]
[340614801,1729534168841,162.36549345,0.0001488,2]
[340615264,1729534238536,-671.3,0.00014869,2]
[340615266,1729534238546,-300.0,0.00014879,2]
[340615268,1729534238556,-20722.29634655,0.0001488,2]
[340615270,1729534238566,-250.0,0.00015267,2]
[340615272,1729534238575,-250.0,0.00015309,2]
[340615274,1729534238585,-250.0,0.00015351,2]
[340615276,1729534238594,-250.0,0.00015393,2]
[340615278,1729534238604,-250.0,0.00015434,2]
[340615280,1729534238613,-250.0,0.00015476,2]
[340615282,1729534238623,-250.0,0.00015518,2]
[340615284,1729534238634,-250.0,0.0001556,2]
[340615287,1729534238645,-250.0,0.00015602,2]
[340615289,1729534238656,-250.0,0.00015644,2]
[340615290,1729534238665,-250.0,0.00015686,2]
[340615291,1729534238674,-250.0,0.00015727,2]
[340615293,1729534238684,-250.0,0.00015769,2]
[340615295,1729534238694,-250.0,0.00015811,2]
[340615297,1729534238704,-250.0,0.00015853,2]
[340615299,1729534238713,-171.257336,0.0001589,2]
[340615300,1729534238723,-250.0,0.00015895,2]
[340615301,1729534238733,-150.0,0.00015897,2]
[340615302,1729534238742,-250.0,0.00015937,2]
[340615303,1729534238752,-452.15967241,0.00015959,2]
[340615304,1729534238761,-8842.76941009,0.00015959,2]
[340615305,1729534238770,-250.0,0.00015979,2]
[340615306,1729534238780,-3740.801471,0.00016,2]
[340615307,1729534238789,-250.0,0.00016021,2]
[340615309,1729534238799,-250.0,0.00016062,2]
[340615311,1729534238808,-1783.609174,0.00016063,2]
[340615313,1729534238818,-998.80143827,0.00016154,2]
[340615315,1729534238827,-1783.609174,0.00016264,2]
[340615317,1729534238837,-420.0,0.00016286,2]
[340615319,1729534238847,-889.5406619,0.00016299,2]
[340615321,1729534238857,-1000.0,0.00016308,2]
[340615323,1729534238868,-676.51947576,0.00016318,2]
[340615325,1729534238877,-439.84381035,0.00016373,2]
[340615327,1729534238887,-500.0,0.00016373,2]
[340615329,1729534238898,-500.0,0.00016373,2]
[340615331,1729534238907,-171.95154177,0.00016395,2]
[340615333,1729534238917,-47629.39405836,0.00016396,2]
[340615335,1729534238926,-26222.69449203,0.00016398,2]
[340615337,1729534238939,-930.9079411,0.00016398,2]
[340615369,1729534239235,-296.13407104,0.00016398,2]
[340615371,1729534239249,-8013.2763129,0.00016398,2]
[340615374,1729534239261,-336.72,0.00016398,2]
[340615379,1729534239308,-4119.10071634,0.00016398,2]
[340615382,1729534239324,-402.47523308,0.00016398,2]
[340615469,1729534240422,-81755.51925134,0.00016398,2]
[340615470,1729534240434,-213765.178509,0.00016398,2]
[340615471,1729534240445,-158205.375975,0.00016398,2]
[340615472,1729534240456,-142510.119006,0.00016398,2]
[340615473,1729534240467,-150.112233,0.000164,2]
[340615474,1729534240478,-150.112233,0.000164,2]
[340615475,1729534240488,-150.112233,0.000164,2]
[340615476,1729534240499,-150.112233,0.000164,2]
[340615477,1729534240510,-150.112235,0.000164,2]
[340615478,1729534240520,-150.112233,0.000164,2]
[340615479,1729534240531,-150.112233,0.000164,2]
[340615480,1729534240542,-150.112233,0.000164,2]
[340615481,1729534240552,-150.112233,0.000164,2]
[340615482,1729534240562,-150.112233,0.000164,2]
[340615483,1729534240573,-150.112233,0.000164,2]
[340615484,1729534240583,-150.112233,0.000164,2]
[340615485,1729534240595,-150.112233,0.000164,2]
[340615486,1729534240606,-187.403945,0.000164,2]
[340615487,1729534240616,-500.0,0.00016427,2]
[340615488,1729534240626,-331.255,0.00016437,2]
[340615489,1729534240636,-500.0,0.00016438,2]
[340615490,1729534240647,-500.0,0.00016438,2]
[340615491,1729534240658,-1164.33,0.00016438,2]
[340615492,1729534240669,-729.3,0.00016438,2]
[340615493,1729534240679,-500.0,0.00016438,2]
[340615494,1729534240690,-851.46,0.00016438,2]
[340615495,1729534240700,-500.0,0.00016438,2]
[340615496,1729534240710,-299.20465351,0.00016438,2]
[340615497,1729534240720,-500.0,0.00016438,2]
[340615498,1729534240730,-500.0,0.00016438,2]
[340615499,1729534240740,-744.69,0.00016438,2]
[340615500,1729534240750,-500.0,0.00016438,2]
[340615501,1729534240760,-500.0,0.00016438,2]
[340615502,1729534240770,-500.0,0.00016438,2]
[340615503,1729534240779,-545.7,0.00016438,2]
[340615504,1729534240789,-500.0,0.00016438,2]
[340615505,1729534240799,-928.66,0.00016438,2]
[340615506,1729534240809,-500.0,0.00016438,2]
[340615507,1729534240820,-500.0,0.00016438,2]
[340615508,1729534240830,-500.0,0.00016438,2]
[340615509,1729534240839,-465.74642049,0.00016438,2]
[340615510,1729534240849,-500.0,0.00016438,2]
[340615511,1729534240859,-500.0,0.00016438,2]
[340615512,1729534240869,-500.0,0.00016438,2]
[340615513,1729534240879,-500.0,0.00016438,2]
[340615514,1729534240893,-500.0,0.00016438,2]
[340615515,1729534240905,-500.0,0.00016438,2]
[340615516,1729534240915,-500.0,0.00016438,2]
[340615517,1729534240926,-500.0,0.00016438,2]
[340615518,1729534240939,-1383.03,0.00016438,2]
[340615519,1729534240949,-500.0,0.00016438,2]
[340615520,1729534240959,-793.37,0.00016438,2]
[340615521,1729534240970,-500.0,0.00016438,2]
[340615522,1729534240980,-740.5,0.00016438,2]
[340615523,1729534240989,-563.24,0.00016438,2]
[340615524,1729534241000,-584.61469736,0.00016438,2]
[340615525,1729534241010,-500.0,0.00016438,2]
[340615526,1729534241020,-500.0,0.00016438,2]
[340615527,1729534241029,-397.66659435,0.00016438,2]
[340615528,1729534241039,-610.56,0.00016438,2]
[340615529,1729534241049,-500.0,0.00016438,2]
[340615530,1729534241059,-639.56029238,0.00016438,2]
[340615531,1729534241069,-500.0,0.00016438,2]
[340615532,1729534241079,-500.0,0.00016438,2]
[340615533,1729534241089,-632.17,0.00016438,2]
[340615534,1729534241100,-500.0,0.00016438,2]
[340615535,1729534241109,-683.14,0.00016438,2]
[340615536,1729534241119,-500.0,0.00016438,2]
[340615537,1729534241129,-500.0,0.00016438,2]
[340615538,1729534241139,-500.0,0.00016438,2]
[340615539,1729534241149,-864.39,0.00016438,2]
[340615540,1729534241160,-191.90073732,0.00016438,2]
[340615541,1729534241169,-597.2034357,0.00016438,2]
[340615542,1729534241179,-500.0,0.00016438,2]
[340615543,1729534241189,-500.0,0.00016438,2]
[340615544,1729534241199,-346.15291495,0.00016438,2]
[340615545,1729534241208,-182.29793616,0.00016438,2]
[340615546,1729534241218,-579.12,0.00016438,2]
[340615547,1729534241228,-279.20755008,0.00016438,2]
[340615548,1729534241238,-1433.79,0.00016438,2]
[340615549,1729534241248,-500.0,0.00016438,2]
[340615550,1729534241258,-1481.97,0.00016438,2]
[340615551,1729534241268,-1041.19,0.00016438,2]
[340615552,1729534241278,-1113.49,0.00016438,2]
[340615553,1729534241288,-1241.72,0.00016438,2]
[340615554,1729534241298,-1622.91,0.00016438,2]
[340615555,1729534241307,-751.78,0.00016438,2]
[340615556,1729534241318,-1483.0,0.00016438,2]
[340615557,1729534241327,-1002.5,0.00016438,2]
[340615558,1729534241337,-705.53,0.00016438,2]
[340615559,1729534241347,-298.57528509,0.00016438,2]
[340615560,1729534241356,-500.0,0.00016438,2]
[340615561,1729534241366,-500.0,0.00016438,2]
[340615562,1729534241376,-571.06,0.00016438,2]
[340615563,1729534241387,-798.77,0.00016438,2]
[340615564,1729534241398,-500.0,0.00016438,2]
[340615565,1729534241407,-1695.59,0.00016438,2]
[340615566,1729534241418,-740.76,0.00016438,2]
[340615567,1729534241428,-500.0,0.00016438,2]
[340615568,1729534241438,-184.2546354,0.00016438,2]
[340615569,1729534241452,-1491.35,0.00016438,2]
[340615570,1729534241462,-545.4160801,0.00016438,2]
[340615571,1729534241472,-1495.34,0.00016438,2]
[340615572,1729534241482,-500.0,0.00016438,2]
[340615573,1729534241492,-500.0,0.00016438,2]
[340615574,1729534241503,-1258.34,0.00016438,2]
[340615575,1729534241513,-500.0,0.00016438,2]
[340615576,1729534241523,-1085.77,0.00016438,2]
[340615577,1729534241533,-500.0,0.00016438,2]
[340615578,1729534241544,-500.0,0.00016438,2]
[340615579,1729534241554,-500.0,0.00016438,2]
[340615580,1729534241564,-990.46,0.00016438,2]
[340615581,1729534241575,-500.0,0.00016438,2]
[340615582,1729534241585,-500.0,0.00016438,2]
[340615583,1729534241595,-500.0,0.00016438,2]
[340615584,1729534241606,-1515.64,0.00016438,2]
[340615585,1729534241615,-1435.46,0.00016438,2]
[340615586,1729534241625,-500.0,0.00016438,2]
[340615587,1729534241635,-703.64,0.00016438,2]
[340615588,1729534241646,-404.67113188,0.00016438,2]
[340615589,1729534241657,-1037.47,0.00016438,2]
[340615590,1729534241669,-500.0,0.00016438,2]
[340615591,1729534241679,-500.0,0.00016438,2]
[340615592,1729534241689,-500.0,0.00016438,2]
[340615593,1729534241699,-718.99,0.00016438,2]
[340615594,1729534241709,-500.0,0.00016438,2]
[340615595,1729534241718,-1197.71,0.00016438,2]
[340615596,1729534241728,-630.45,0.00016438,2]
[340615597,1729534241739,-500.0,0.00016438,2]
[340615598,1729534241749,-640.94,0.00016438,2]
[340615599,1729534241759,-500.0,0.00016438,2]
[340615600,1729534241770,-159.29201979,0.00016438,2]
[340615601,1729534241779,-500.0,0.00016438,2]
[340615602,1729534241790,-1742.0,0.00016438,2]
[340615603,1729534241799,-500.0,0.00016438,2]
[340615604,1729534241809,-1355.79,0.00016438,2]
[340615605,1729534241820,-500.0,0.00016438,2]
[340615606,1729534241830,-500.0,0.00016438,2]
[340615607,1729534241840,-500.0,0.00016438,2]
[340615608,1729534241851,-1965.14,0.00016438,2]
[340615609,1729534241861,-500.0,0.00016438,2]
[340615610,1729534241871,-500.0,0.00016438,2]
[340615611,1729534241880,-500.0,0.00016438,2]
[340615612,1729534241890,-500.0,0.00016438,2]
[340615613,1729534241900,-500.0,0.00016438,2]
[340615614,1729534241909,-500.0,0.00016438,2]
[340615615,1729534241922,-500.0,0.00016438,2]
[340615616,1729534241932,-500.0,0.00016438,2]
[340615617,1729534241942,-500.0,0.00016438,2]
[340615618,1729534241952,-212.96479063,0.00016438,2]
[340615619,1729534241963,-2213.36,0.00016438,2]
[340615620,1729534241972,-500.0,0.00016438,2]
[340615621,1729534241982,-500.0,0.00016438,2]
[340615622,1729534241992,-615.39,0.00016438,2]
[340615623,1729534242002,-500.0,0.00016438,2]
[340615624,1729534242012,-1096.49,0.00016438,2]
[340615625,1729534242022,-1571.94,0.00016438,2]
[340615626,1729534242031,-500.0,0.00016438,2]
[340615627,1729534242041,-500.0,0.00016438,2]
[340615628,1729534242051,-500.0,0.00016438,2]
[340615629,1729534242061,-726.22,0.00016438,2]
[340615630,1729534242071,-500.0,0.00016438,2]
[340615631,1729534242081,-1972.7,0.00016438,2]
[340615632,1729534242091,-500.0,0.00016438,2]
[340615633,1729534242101,-500.0,0.00016438,2]
[340615634,1729534242111,-305.22878819,0.00016438,2]
[340615635,1729534242120,-500.0,0.00016438,2]
[340615636,1729534242130,-554.07233275,0.00016438,2]
[340615637,1729534242140,-500.0,0.00016438,2]
[340615638,1729534242152,-500.0,0.00016438,2]
[340615639,1729534242162,-500.0,0.00016438,2]
[340615640,1729534242171,-500.0,0.00016438,2]
[340615641,1729534242181,-877.39,0.00016438,2]
[340615642,1729534242191,-204.1002286,0.00016438,2]
[340615643,1729534242201,-497.78967187,0.00016438,2]
[340615644,1729534242210,-2078.88,0.00016438,2]
[340615645,1729534242220,-500.0,0.00016438,2]
[340615646,1729534242230,-500.0,0.00016438,2]
[340615647,1729534242240,-200.0,0.00016438,2]
[340615648,1729534242250,-547.81355773,0.00016438,2]
[340615649,1729534242260,-543.74,0.00016438,2]
[340615650,1729534242269,-1067.26,0.00016438,2]
[340615651,1729534242279,-500.0,0.00016438,2]
[340615652,1729534242289,-500.0,0.00016438,2]
[340615653,1729534242298,-500.0,0.00016438,2]
[340615654,1729534242308,-1260.66,0.00016438,2]
[340615655,1729534242318,-500.0,0.00016438,2]
[340615656,1729534242328,-500.0,0.00016438,2]
[340615657,1729534242338,-500.0,0.00016438,2]
[340615658,1729534242347,-321.44456386,0.00016438,2]
[340615659,1729534242358,-500.77455274,0.00016438,2]
[340615660,1729534242367,-500.0,0.00016438,2]
[340615661,1729534242377,-500.0,0.00016438,2]
[340615662,1729534242386,-500.0,0.00016438,2]
[340615663,1729534242398,-500.0,0.00016438,2]
[340615664,1729534242408,-544.0592777,0.00016438,2]
[340615665,1729534242417,-627.85,0.00016438,2]
[340615666,1729534242427,-699.09,0.00016438,2]
[340615667,1729534242437,-1068.33,0.00016438,2]
[340615668,1729534242447,-500.0,0.00016438,2]
[340615669,1729534242456,-221.97215194,0.00016438,2]
[340615670,1729534242466,-500.0,0.00016438,2]
[340615671,1729534242475,-599.24932482,0.00016438,2]
[340615672,1729534242485,-500.0,0.00016438,2]
[340615673,1729534242498,-500.0,0.00016438,2]
[340615674,1729534242508,-299.57837491,0.00016438,2]
[340615675,1729534242517,-500.0,0.00016438,2]
[340615676,1729534242527,-500.0,0.00016438,2]
[340615677,1729534242537,-617.06,0.00016438,2]
[340615678,1729534242547,-1925.66,0.00016438,2]
[340615679,1729534242557,-1374.84,0.00016438,2]
[340615680,1729534242566,-500.0,0.00016438,2]
[340615681,1729534242576,-500.0,0.00016438,2]
[340615682,1729534242585,-500.0,0.00016438,2]
[340615683,1729534242595,-500.0,0.00016438,2]
[340615684,1729534242605,-500.0,0.00016438,2]
[340615688,1729534242704,-500.0,0.00016438,2]
[340615690,1729534242714,-500.0,0.00016438,2]
[340615691,1729534242723,-500.0,0.00016438,2]
[340615692,1729534242733,-1735.37,0.00016438,2]
[340615693,1729534242742,-500.0,0.00016438,2]
[340615694,1729534242751,-500.0,0.00016438,2]
[340615695,1729534242760,-1452.65,0.00016438,2]